bitfinex-derivatives/quotes_ETHF0:USTF0_20210110
["timestamp","ask_amount","ask_price","bid_price","bid_amount"]
[1610271499105,4.00959,1334.7,1334.5,3.62373175]
[1610271499807,4.00959,1334.7,1334.4,7.24772005]
[1610271501812,4.00959,1334.5,1334.4,7.24772005]
[1610271502414,4.00959,1334.5,1334.4,3.62417827]
[1610271504016,4.00959,1334.5,1334.4,6.80238871]
[1610271504616,4.00959,1334.5,1334.4,3.62417827]
[1610271505316,4.00959,1334.5,1334.4,6.79989087]
[1610271507119,4.00959,1334.5,1333.8,3.62829583]
[1610271507920,4.00959,1333.9,1333.8,3.62829583]
[1610271508119,4.00959,1333.9,1333.6,4.00959]
[1610271508721,4.00959,1333.9,1333.8,3.62917512]
[1610271512823,4.00959,1333.9,1333.6,4.00959]
[1610271513023,1.6021,1334.7,1333.6,4.00959]
[1610271513423,1.6697,1335.2,1333.9,3.62492068]
[1610271513823,1.6629,1335.5,1334.6,3.17176644]
[1610271514125,45.8413,1336.2,1334.6,3.17176644]
[1610271514324,40.0,1336.2,1334.6,3.17176644]
[1610271515626,40.0,1336.2,1334.7,3.16976334]
[1610271515831,4.00959,1334.8,1334.7,3.16976334]
[1610271516225,6.00279,1334.8,1334.7,3.16976334]
[1610271516426,6.00279,1334.8,1334.2,4.00959]
[1610271516831,6.00279,1334.8,1334.2,7.6275745]
[1610271517328,4.00959,1334.8,1334.3,3.61926969]
[1610271517930,4.00959,1334.8,1334.6,4.00959]
[1610271519128,13.405,1336.2,1334.6,4.00959]
[1610271519332,13.405,1336.2,1334.6,7.6230916]
[1610271519730,13.405,1336.2,1335.2,3.16212902]
[1610271519930,4.00959,1335.3,1335.2,3.16212902]
[1610271520330,4.00959,1335.3,1334.9,4.00959]
[1610271521833,4.00959,1335.0,1334.9,4.00959]
[1610271522033,4.00959,1335.0,1334.6,5.6788016]
[1610271522431,4.00959,1335.0,1334.6,3.6135016]
[1610271522632,4.00959,1335.0,1334.5,3.6150666]
[1610271523033,4.00959,1335.0,1334.3,3.61744253]
[1610271523933,4.00959,1334.4,1334.3,7.62703253]
[1610271524133,2.1643,1335.3,1334.3,7.62703253]
[1610271524332,2.1643,1335.3,1335.1,3.16365642]
[1610271525934,4.00959,1335.2,1335.1,3.16365642]
[1610271526734,4.00959,1335.2,1335.0,3.16393507]
[1610271528133,4.00959,1335.2,1335.1,3.16341043]
[1610271528834,4.00959,1335.2,1334.8,59.5629]
[1610271529837,2.2239,1335.6,1335.0,4.00959]
[1610271530241,2.2239,1335.6,1335.3,3.15867171]
[1610271530440,54.3002,1335.9,1335.3,3.15867171]
[1610271530840,54.3002,1335.9,1335.4,3.1579527]
[1610271531840,10.0,1336.2,1335.4,3.1579527]
[1610271532041,4.00959,1335.5,1335.4,3.1579527]
[1610271533441,4.00959,1335.5,1335.3,3.15720809]
[1610271534142,4.00959,1335.5,1335.1,52.3732]
[1610271534341,4.00959,1335.5,1335.4,3.15595597]
[1610271534741,4.00959,1335.5,1335.1,52.3732]
[1610271535943,4.00959,1335.2,1335.1,52.3732]
[1610271542956,4.00959,1335.2,1335.1,55.53118981]
[1610271544053,4.00959,1335.2,1335.1,52.3732]
[1610271544253,4.00959,1335.2,1334.5,1.7666]
[1610271544254,4.00959,1335.2,1335.0,3.15933638]
[1610271545256,4.00959,1335.2,1334.9,51.0846]
[1610271545257,4.00959,1335.2,1334.9,54.24503357]
[1610271545657,4.00959,1335.2,1334.9,51.0846]
[1610271546057,4.00959,1335.0,1334.9,51.0846]
[1610271553366,34.00959,1335.0,1334.9,51.0846]
[1610271553566,40.80639,1335.0,1334.5,45.7206]
[1610271553766,40.80639,1335.0,1334.5,48.88906173]
[1610271553967,4.00959,1334.6,1334.5,48.88906173]
[1610271557470,4.00959,1334.6,1334.5,45.7206]
[1610271559373,4.00959,1334.6,1334.5,48.88887082]
[1610271559574,1.5843,1335.3,1335.0,2.19361]
[1610271559773,30.0,1335.5,1335.0,2.19361]
[1610271559976,4.00959,1335.1,1335.0,2.19361]
[1610271560173,6.37939,1335.1,1335.0,2.19361]
[1610271562878,13.93899,1335.1,1335.0,2.19361]
[1610271564578,6.37939,1335.1,1335.0,2.19361]
[1610271569489,36.37939,1335.1,1335.0,2.19361]
[1610271574992,6.37939,1335.1,1335.0,2.19361]
[1610271575891,36.37939,1335.1,1335.0,2.19361]
[1610271579592,6.37939,1335.1,1335.0,2.19361]
[1610271580093,36.37939,1335.1,1335.0,2.19361]
[1610271591909,36.37939,1335.1,1333.9,3.16958692]
[1610271592310,4.00959,1334.0,1333.9,3.16958692]
[1610271592708,6.44629,1334.0,1333.9,3.16958692]
[1610271593308,6.44629,1334.0,1333.8,3.17079653]
[1610271594311,6.44629,1334.0,1333.9,3.17056925]
[1610271594613,6.44629,1334.0,1333.8,3.17065283]
[1610271594912,6.44629,1334.0,1333.9,3.17061588]
[1610271609332,6.44629,1334.0,1333.9,6.34402233]
[1610271610335,6.44629,1334.0,1333.9,3.17061588]
[1610271621044,6.44629,1334.0,1333.9,6.35454573]
[1610271621444,6.44629,1334.0,1333.9,3.17061588]
[1610271622847,6.44629,1334.0,1333.9,6.35382323]
[1610271624650,6.44629,1334.0,1333.9,3.17061588]
[1610271626456,6.44629,1334.0,1333.9,7.18020588]
[1610271626756,6.44629,1334.0,1333.9,3.17061588]
[1610271627756,6.44629,1334.0,1333.9,6.35151304]
[1610271627958,6.44629,1334.0,1333.9,3.18089716]
[1610271628959,6.44629,1334.0,1333.8,3.18274405]
[1610271632963,6.44629,1334.0,1333.7,3.18377967]
[1610271634466,4.00959,1333.8,1333.7,3.18377967]
[1610271635067,4.00959,1333.8,1333.1,7.64776416]
[1610271635570,4.00959,1333.8,1333.7,3.18330029]
[1610271636269,4.00959,1333.8,1333.1,7.64776416]
[1610271636468,4.00959,1333.2,1333.1,7.64776416]
[1610271641073,4.00959,1333.2,1333.1,4.00959]
[1610271643177,4.00959,1333.2,1333.1,7.64669066]
[1610271644276,2.4367,1334.0,1333.1,7.64669066]
[1610271644676,57.9538,1334.2,1333.3,4.00959]
[1610271644878,57.9538,1334.2,1333.8,3.17660456]
[1610271646079,57.9538,1334.2,1333.9,3.17557721]
[1610271646579,4.00959,1334.0,1333.9,3.17557721]
[1610271646778,6.30299,1334.0,1333.9,3.17557721]
[1610271648684,6.30299,1334.0,1333.4,4.00959]
[1610271649183,6.30299,1334.0,1333.2,3.62957515]
[1610271649383,6.30299,1334.0,1333.8,3.17660477]
[1610271650287,6.30299,1334.0,1333.3,3.62875845]
[1610271650486,6.30299,1334.0,1333.9,4.00959]
[1610271651287,4.00959,1334.0,1333.9,4.00959]
[1610271651688,4.00959,1334.0,1333.5,3.62368739]
[1610271652289,4.00959,1334.0,1333.3,7.25535483]
[1610271652690,4.00959,1333.4,1333.3,7.25535483]
[1610271652889,4.00959,1333.4,1333.3,3.62875845]
[1610271658595,4.00959,1333.4,1333.3,6.81968104]
[1610271658794,4.00959,1333.4,1333.3,3.62875845]
[1610271668311,4.00959,1333.4,1333.0,63.468244]
[1610271668710,6.44689,1333.1,1333.0,60.2711]
[1610271669712,36.44689,1333.1,1333.0,60.2711]
[1610271671214,59.8705,1333.0,1332.2,59.79]
[1610271671413,30.0,1332.9,1332.1,3.21053601]
[1610271672213,30.0,1332.9,1331.3,3.67149292]
[1610271672414,30.0,1332.9,1331.9,3.2137615]
[1610271672615,4.00959,1332.0,1331.9,3.2137615]
[1610271672814,6.09089,1332.0,1331.9,3.2137615]
[1610271673415,6.09089,1332.0,1331.8,3.21382915]
[1610271673615,36.09089,1332.0,1331.8,3.21382915]
[1610271674015,36.09089,1332.0,1331.7,3.21522791]
[1610271674416,36.09089,1332.0,1331.4,3.21974641]
[1610271674616,4.00959,1331.5,1331.3,3.22104732]
[1610271674817,6.03499,1331.5,1331.3,3.22104732]
[1610271675016,36.03499,1331.5,1331.3,3.22104732]
[1610271675416,36.03499,1331.5,1331.1,3.22409234]
[1610271676018,36.03499,1331.5,1330.9,3.22784395]
[1610271676217,36.03499,1331.5,1330.5,3.22903815]
[1610271676417,54.1052,1331.1,1330.5,3.22903815]
[1610271676617,4.00959,1330.6,1330.3,3.22937188]
[1610271676818,5.99519,1330.6,1330.3,3.22937188]
[1610271677820,5.99519,1330.6,1330.4,3.22930013]
[1610271678220,5.99519,1330.6,1330.0,4.14134656]
[1610271678418,5.99519,1330.6,1330.4,3.22935365]
[1610271680120,5.99519,1330.6,1330.5,3.22912015]
[1610271680324,5.99519,1330.6,1330.0,7.83136706]
[1610271680720,4.00959,1330.1,1330.0,7.83136706]
[1610271682023,1.9856,1330.6,1330.0,7.83136706]
[1610271682223,56.536,1331.1,1330.0,7.83136706]
[1610271682623,56.536,1331.1,1330.9,3.22518229]
[1610271683727,56.536,1331.1,1331.0,3.22326668]
[1610271684626,60.54559,1331.1,1331.0,3.22326668]
[1610271685428,6.44039,1331.1,1331.0,6.44668338]
[1610271686028,6.44039,1331.1,1331.0,3.22326668]
[1610271686431,4.00959,1331.1,1331.0,3.22326668]
[1610271688433,4.00959,1331.1,1330.8,3.67620374]
[1610271688631,4.00959,1330.9,1330.8,3.67620374]
[1610271688833,4.00959,1330.9,1330.7,1.7952]
[1610271689034,4.00959,1330.9,1330.7,5.47184697]
[1610271690133,4.00959,1330.9,1330.7,1.7952]
[1610271690332,4.00959,1330.9,1330.4,2.0502]
[1610271690732,4.00959,1330.5,1330.4,2.0502]
[1610271691332,4.00959,1330.5,1330.2,4.00959]
[1610271691533,2.0254,1331.5,1330.2,4.00959]
[1610271691735,52.8664,1332.7,1331.4,3.21628335]
[1610271692535,52.8664,1332.7,1331.5,3.21538926]
[1610271692735,4.00959,1331.6,1331.5,3.21538926]
[1610271693135,6.11899,1331.6,1331.5,3.21538926]
[1610271694843,6.11899,1331.6,1331.4,3.2174152]
[1610271697744,6.11899,1331.6,1331.3,3.21758357]
[1610271698046,6.11899,1331.6,1331.1,51.8667]
[1610271698047,6.11899,1331.6,1331.4,3.21599304]
[1610271699249,6.11899,1331.6,1331.5,3.21408102]
[1610271699849,6.11899,1331.6,1331.4,3.21237667]
[1610271700950,6.11899,1331.6,1331.5,3.21168649]
[1610271702950,6.11899,1331.6,1331.1,51.8667]
[1610271703351,6.11899,1331.6,1331.5,3.21135876]
[1610271703850,6.11899,1331.6,1331.1,51.8667]
[1610271704654,4.00959,1331.2,1331.1,51.8667]
[1610271704854,2.1094,1331.6,1331.1,51.8667]
[1610271705055,56.093,1332.7,1331.1,51.8667]
[1610271706054,56.093,1332.7,1331.8,3.20712672]
[1610271706653,56.093,1332.7,1331.9,3.20585592]
[1610271707254,56.093,1332.7,1332.0,3.20487711]
[1610271708057,56.093,1332.7,1331.4,3.6618882]
[1610271708258,57.8609,1332.7,1331.4,3.6618882]
[1610271708858,4.00959,1331.5,1331.4,3.6618882]
[1610271709058,4.00959,1331.5,1331.4,3.83802456]
[1610271714161,6.42329,1331.5,1331.4,3.83802456]
[1610271719565,6.42329,1331.5,1331.4,0.17613636]
[1610271735786,36.42329,1331.5,1331.4,0.17613636]
[1610271738488,6.42329,1331.5,1331.4,0.17613636]
[1610271750405,4.00959,1331.5,1331.4,0.17613636]
[1610271751004,2.2503,1332.1,1331.4,4.18572636]
[1610271752207,1.7679,1332.7,1331.4,4.18572636]
[1610271752606,6.811,1333.7,1331.4,4.18572636]
[1610271753007,4.00959,1332.4,1332.3,4.00959]
[1610271754208,4.00959,1332.4,1331.4,0.17613636]
[1610271754909,2.3974,1332.8,1331.4,0.17613636]
[1610271755710,32.3974,1332.8,1331.4,0.17613636]
[1610271756912,4.00959,1331.5,1331.4,0.17613636]
[1610271759713,2.4213,1332.2,1331.4,0.17613636]
[1610271760616,2.4213,1332.2,1331.5,54.7444]
[1610271761016,4.00959,1331.9,1331.7,4.00959]
[1610271761217,2.4213,1332.2,1331.5,54.7444]
[1610271762916,4.00959,1331.7,1331.5,58.75399]
[1610271763515,2.4213,1332.2,1331.5,58.75399]
[1610271764618,1.8903,1332.5,1331.5,58.75399]
[1610271764921,4.00959,1332.3,1332.1,4.00959]
[1610271765520,1.8903,1332.5,1332.1,4.00959]
[1610271767023,4.00959,1332.4,1332.3,4.00959]
[1610271767523,4.00959,1332.4,1331.5,54.7444]
[1610271769026,4.00959,1332.2,1332.1,4.00959]
[1610271770825,1.8903,1332.5,1332.1,4.00959]
[1610271771025,5.89989,1332.5,1332.1,4.00959]
[1610271771227,4.00959,1332.5,1332.1,4.00959]
[1610271773029,4.00959,1332.2,1332.1,4.00959]
[1610271774429,4.00959,1332.2,1331.7,2.1088]
[1610271774930,4.00959,1331.8,1331.7,2.1088]
[1610271776434,4.00959,1331.8,1331.4,1.89043636]
[1610271776933,4.00959,1331.8,1331.6,4.00959]
[1610271778635,4.00959,1331.8,1331.6,55.63739]
[1610271778832,4.00959,1331.8,1331.6,4.00959]
[1610271779233,2.3974,1332.8,1331.6,4.00959]
[1610271779433,2.0759,1333.1,1331.6,66.06799]
[1610271779632,51.6581,1333.3,1331.6,66.06799]
[1610271781133,4.00959,1332.3,1332.1,4.00959]
[1610271781334,4.00959,1332.3,1331.6,62.0584]
[1610271783032,4.00959,1332.3,1332.0,4.00959]
[1610271783936,4.00959,1332.3,1331.6,62.0584]
[1610271785034,4.00959,1332.1,1331.9,4.00959]
[1610271789538,4.00959,1332.1,1331.7,62.4622]
[1610271790539,12.0,1332.1,1331.7,62.4622]
[1610271791039,12.0,1332.1,1332.0,4.00959]
[1610271796746,12.0,1332.1,1331.7,62.4622]
[1610271797147,4.00959,1331.9,1331.8,4.00959]
[1610271804355,4.00959,1331.9,1331.6,44.9679]
[1610271805156,4.00959,1331.7,1331.6,44.9679]
[1610271807559,4.00959,1331.7,1331.5,4.00959]
[1610271809659,12.0,1332.1,1331.5,4.00959]
[1610271809859,12.0,1332.1,1331.5,5.94929]
[1610271811161,16.00959,1332.1,1331.9,4.00959]
[1610271811660,12.0,1332.1,1331.9,4.00959]
[1610271816962,12.0,1332.1,1331.9,12.72799]
[1610271817162,12.0,1332.1,1331.9,4.00959]
[1610271825667,12.0,1332.1,1331.9,34.00959]
[1610271827070,12.0,1332.1,1331.9,4.00959]
[1610271827668,12.0,1332.1,1331.9,34.00959]
[1610271828569,12.0,1332.1,1331.9,4.00959]
[1610271829170,12.0,1332.1,1331.9,34.00959]
[1610271830471,12.0,1332.1,1331.9,4.00959]
[1610271837375,4.00959,1332.0,1331.9,4.00959]
[1610271839083,12.0,1332.1,1331.9,4.00959]
[1610271863202,12.0,1332.1,1331.9,34.00959]
[1610271864201,12.0,1332.1,1331.9,4.00959]
[1610271874212,12.0,1332.1,1332.0,30.0]
[1610271886127,12.0,1332.1,1331.9,4.00959]
[1610271897141,12.0,1332.1,1331.9,34.00959]
[1610271898040,12.0,1332.1,1331.9,4.00959]
[1610271899041,12.0,1332.1,1331.9,34.00959]
[1610271906851,2.1451,1332.1,1331.9,34.00959]
[1610271907452,42.7951,1333.5,1331.9,34.00959]
[1610271907656,42.7951,1333.5,1333.4,4.00959]
[1610271907852,42.7951,1333.5,1333.4,6.31029]
[1610271910959,18.4368626,1334.4,1333.4,6.31029]
[1610271911658,16.3169626,1334.4,1333.4,6.31029]
[1610271911857,16.3169626,1334.4,1334.3,4.00959]
[1610271958710,16.3169626,1334.4,1334.3,10.14169]
[1610271967321,16.3169626,1334.4,1334.3,18.72189]
[1610271974326,16.3169626,1334.4,1334.3,48.72189]
[1610271976730,16.3169626,1334.4,1334.3,40.14169]
[1610271997965,16.3169626,1334.4,1334.3,42.55949]
[1610271998360,16.2169626,1334.4,1334.3,42.55949]
[1610271998659,11.3169626,1334.4,1334.3,42.55949]
[1610272009972,6.3169626,1334.4,1334.3,42.55949]
[1610272015678,24.3169626,1334.4,1334.3,42.55949]
[1610272018079,24.3169626,1334.4,1334.3,36.42739]
[1610272024188,24.3169626,1334.4,1334.3,6.42739]
[1610272024990,18.1853626,1334.4,1334.3,6.42739]
[1610272025191,18.1853626,1334.4,1334.3,4.00959]
[1610272027796,18.1853626,1334.4,1334.3,5.78829]
[1610272035402,18.1853626,1334.4,1334.3,35.78829]
[1610272053525,9.0922626,1334.4,1334.3,35.78829]
[1610272053925,4.0922626,1334.4,1334.3,35.78829]
[1610272061631,72.2481738,1334.5,1334.4,0.9077374]
[1610272065139,63.5791738,1334.5,1334.4,0.9077374]
[1610272085162,79.5791738,1334.5,1334.4,0.9077374]
[1610272085364,68.4280738,1334.5,1334.4,0.9077374]
[1610272090169,60.2267738,1334.5,1334.4,0.9077374]
[1610272094175,59.12765134,1334.5,1334.4,0.9077374]
[1610272094375,51.2732738,1334.5,1334.4,0.9077374]
[1610272102390,44.9416738,1334.5,1334.4,0.9077374]
[1610272102587,35.4111738,1334.5,1334.4,0.9077374]
[1610272105089,26.2640738,1334.5,1334.4,0.9077374]
[1610272106089,18.1749738,1334.5,1334.4,0.9077374]
[1610272106789,9.6018738,1334.5,1334.4,0.9077374]
[1610272107590,173.42653516,1334.7,1334.4,0.9077374]
[1610272108494,173.42653516,1334.7,1334.5,48.5881]
[1610272108692,173.42653516,1334.7,1334.5,30.0]
[1610272108893,167.26824582,1334.6,1334.5,30.0]
[1610272109093,167.26824582,1334.6,1334.5,34.00959]
[1610272109392,166.36050842,1334.6,1334.5,34.00959]
[1610272111498,156.75930842,1334.6,1334.5,34.00959]
[1610272112397,141.59180842,1334.6,1334.5,34.00959]
[1610272112597,132.94230842,1334.6,1334.5,34.00959]
[1610272114502,129.74230842,1334.6,1334.5,34.00959]
[1610272114700,93.41520842,1334.6,1334.5,34.00959]
[1610272114901,78.07740842,1334.6,1334.5,34.00959]
[1610272115401,69.16920842,1334.6,1334.5,34.00959]
[1610272115603,54.27440842,1334.6,1334.5,34.00959]
[1610272116202,44.95600842,1334.6,1334.5,34.00959]
[1610272116904,41.25390842,1334.6,1334.5,34.00959]
[1610272117103,38.05390842,1334.6,1334.5,34.00959]
[1610272117306,34.85390842,1334.6,1334.5,34.00959]
[1610272117904,161.89020648,1334.7,1334.5,34.00959]
[1610272118106,55.07261542,1334.7,1334.5,34.00959]
[1610272118305,54.43111202,1336.1,1334.5,34.00959]
[1610272119006,54.43111202,1336.1,1335.0,4.00959]
[1610272119209,54.43111202,1336.1,1335.0,34.00959]
[1610272124213,42.97608644,1335.1,1335.0,34.00959]
[1610272126919,42.97608644,1335.1,1334.9,1.7699]
[1610272127118,42.97608644,1335.1,1335.0,26.01918]
[1610272133323,37.97608644,1335.1,1335.0,26.01918]
[1610272142536,32.97608644,1335.1,1335.0,26.01918]
[1610272144236,29.77608644,1335.1,1335.0,26.01918]
[1610272144437,26.57608644,1335.1,1335.0,26.01918]
[1610272145043,23.37608644,1335.1,1335.0,26.01918]
[1610272148045,20.17608644,1335.1,1335.0,26.01918]
[1610272148446,16.97608644,1335.1,1335.0,26.01918]
[1610272148844,13.77608644,1335.1,1335.0,26.01918]
[1610272150043,10.57608644,1335.1,1335.0,26.01918]
[1610272158153,9.48608644,1335.1,1335.0,26.01918]
[1610272160255,3.08608644,1335.1,1335.0,26.01918]
[1610272161756,108.83678775,1336.0,1335.0,26.01918]
[1610272166461,96.81326859,1335.2,1335.0,26.01918]
[1610272167161,92.95326859,1335.2,1335.0,26.01918]
[1610272187588,92.95326859,1335.2,1335.0,22.00959]
[1610272188093,92.95326859,1335.2,1335.1,4.00959]
[1610272188289,92.95326859,1335.2,1335.1,26.01918]
[1610272204013,89.75326859,1335.2,1335.1,26.01918]
[1610272206417,86.55326859,1335.2,1335.1,26.01918]
[1610272206816,83.35326859,1335.2,1335.1,26.01918]
[1610272211422,80.15326859,1335.2,1335.1,26.01918]
[1610272211821,73.75326859,1335.2,1335.1,26.01918]
[1610272214025,68.75326859,1335.2,1335.1,26.01918]
[1610272216126,65.55326859,1335.2,1335.1,26.01918]
[1610272225641,19.18628854,1336.4,1335.1,26.01918]
[1610272225643,125.1784,1338.4,1335.1,26.01918]
[1610272225838,125.1784,1338.4,1335.1,29.42418]
[1610272226037,125.1784,1338.4,1335.4,10.07003662]
[1610272226236,125.1784,1338.4,1335.5,22.00959]
[1610272226437,125.1784,1338.4,1337.2,4.00959]
[1610272226636,125.1784,1338.4,1337.2,26.01918]
[1610272228639,45.403,1338.2,1337.2,26.01918]
[1610272229039,45.403,1338.2,1337.3,9.15490294]
[1610272229240,45.403,1338.2,1337.4,22.00959]
[1610272229639,45.403,1338.2,1337.4,23.67289]
[1610272230440,45.403,1338.2,1338.1,4.00959]
[1610272230641,54.5896,1338.6,1338.1,26.01918]
[1610272232443,54.5896,1338.6,1338.5,4.00959]
[1610272232844,54.5896,1338.6,1338.5,6.27359]
[1610272233044,2.1352,1340.1,1338.5,6.27359]
[1610272233245,2.0266,1340.4,1338.5,6.27359]
[1610272234745,30.0,1346.1,1341.6,3.00959]
[1610272235146,30.0,1346.1,1340.7,7.32340247]
[1610272235347,30.0,1346.1,1338.6,6.21611857]
[1610272235548,5.8264,1342.9,1338.6,6.21611857]
[1610272236450,5.77379,1341.7,1341.6,4.00959]
[1610272236650,5.77379,1341.7,1338.6,6.21611857]
[1610272238453,1.7642,1341.7,1341.5,4.00959]
[1610272240253,7.9473,1341.5,1339.4,1.8644]
[1610272240655,11.95689,1341.5,1341.3,4.00959]
[1610272240855,7.9473,1341.5,1341.3,4.00959]
[1610272242359,1.7642,1341.7,1341.3,4.00959]
[1610272242561,4.00959,1341.6,1341.5,4.00959]
[1610272242759,4.00959,1341.6,1339.4,1.8644]
[1610272242960,6.00499,1341.6,1339.4,1.8644]
[1610272243659,6.00499,1341.6,1338.6,0.17061857]
[1610272244562,4.00959,1341.3,1341.2,4.00959]
[1610272244759,6.44779,1341.3,1341.2,4.00959]
[1610272245260,51.23819,1341.3,1341.2,4.00959]
[1610272248265,47.2286,1341.3,1341.2,4.00959]
[1610272249465,2.4382,1341.3,1341.2,4.00959]
[1610272249867,4.00959,1341.4,1341.2,4.00959]
[1610272252671,1.9954,1341.6,1341.2,4.00959]
[1610272253072,127.8542,1341.9,1341.2,4.00959]
[1610272253876,49.608,1341.2,1340.8,7.32349548]
[1610272254076,51.6351,1341.2,1340.8,7.32349548]
[1610272254575,55.64469,1341.2,1341.1,4.00959]
[1610272261483,55.64469,1341.2,1340.8,7.32349548]
[1610272261683,55.64469,1341.2,1340.6,7.32427106]
[1610272262282,55.64469,1341.2,1340.3,7.32493921]
[1610272262684,4.00959,1340.4,1340.0,7.32607011]
[1610272262884,6.51549,1340.4,1340.0,7.32607011]
[1610272263083,6.51549,1340.4,1339.8,7.32719639]
[1610272263282,6.51549,1340.4,1339.6,7.32786108]
[1610272264084,6.51549,1340.4,1339.4,7.32955246]
[1610272264284,30.0,1340.3,1339.1,7.33040645]
[1610272264684,4.00959,1339.2,1339.0,7.33088995]
[1610272264886,5.84149,1339.2,1339.0,7.33088995]
[1610272265485,5.84149,1339.2,1338.8,7.33137733]
[1610272265992,5.84149,1339.2,1338.7,7.33215715]
[1610272266396,5.84149,1339.2,1338.6,0.17061857]
[1610272266594,4.00959,1338.7,1338.6,0.17061857]
[1610272266894,6.17299,1338.7,1338.6,0.17061857]
[1610272267295,1.58961625,1338.7,1338.6,0.17061857]
[1610272268596,1.58961625,1338.7,1338.6,4.18020857]
[1610272271904,48.5905,1338.8,1338.6,4.18020857]
[1610272276106,48.5905,1338.8,1338.7,7.33086049]
[1610272277708,1.8319,1339.2,1338.7,7.33086049]
[1610272278109,120.5916,1339.3,1338.7,7.33086049]
[1610272278609,4.00959,1339.2,1339.0,4.00959]
[1610272278808,5.91849,1339.2,1339.0,4.00959]
[1610272279110,1.9089,1339.2,1339.0,4.00959]
[1610272283915,120.5916,1339.3,1339.0,4.00959]
[1610272284214,120.5916,1339.3,1338.7,7.33086049]
[1610272284515,122.1021,1339.3,1338.6,7.50179958]
[1610272284714,126.11169,1339.3,1339.0,4.00959]
[1610272285416,122.1021,1339.3,1339.0,4.00959]
[1610272286718,122.1021,1339.3,1338.6,7.50179958]
[1610272286719,122.1021,1339.3,1339.2,4.00959]
[1610272287120,1.5105,1339.3,1339.2,4.00959]
[1610272289421,1.33988143,1339.3,1339.2,4.00959]
[1610272289622,143.68439,1339.9,1339.2,4.00959]
[1610272290725,143.68439,1339.9,1339.6,4.00959]
[1610272292329,5.7149,1340.3,1339.6,4.00959]
[1610272292729,4.00959,1340.2,1340.0,10.42281419]
[1610272294229,4.00959,1340.2,1340.0,6.41322419]
[1610272295935,2.5059,1340.4,1340.0,6.41322419]
[1610272296334,30.0,1340.7,1340.0,6.41322419]
[1610272296534,203.4906,1341.1,1340.2,2.1714]
[1610272296736,4.00959,1340.4,1340.2,2.1714]
[1610272296936,3.49859,1340.4,1340.2,2.1714]
[1610272299138,3.49859,1340.4,1340.3,6.41216393]
[1610272299340,2.3176,1340.4,1340.3,6.41216393]
[1610272300839,6.32719,1340.4,1340.3,6.41216393]
[1610272301040,6.32719,1340.4,1340.2,2.1714]
[1610272301639,6.32719,1340.4,1338.9,7.32897964]
[1610272302740,4.00959,1340.0,1339.7,4.00959]
[1610272302942,5.63669,1340.0,1339.7,4.00959]
[1610272306842,5.63669,1340.0,1339.9,4.00959]
[1610272307442,1.6271,1340.0,1339.9,4.00959]
[1610272308046,2.3176,1340.4,1339.9,4.00959]
[1610272308245,30.0,1341.0,1339.9,4.00959]
[1610272308744,4.00959,1340.3,1340.2,4.00959]
[1610272308946,29.00959,1341.0,1340.2,4.00959]
[1610272309144,2.3939,1340.3,1340.2,4.00959]
[1610272310046,31.40349,1340.3,1339.1,7.32768344]
[1610272310548,31.40349,1340.3,1338.9,7.32852753]
[1610272310748,4.00959,1340.2,1340.1,4.00959]
[1610272310947,33.01918,1340.2,1340.1,4.00959]
[1610272311247,33.01918,1340.2,1340.1,10.42219342]
[1610272311848,4.00959,1340.2,1340.1,6.41260342]
[1610272312048,2.3939,1340.3,1340.1,6.41260342]
[1610272312449,31.40349,1340.3,1340.1,6.41260342]
[1610272312751,31.40349,1340.3,1340.2,4.00959]
[1610272313450,2.3939,1340.3,1340.2,4.00959]
[1610272314052,29.00959,1341.0,1340.2,4.00959]
[1610272314552,29.00959,1341.1,1340.2,4.00959]
[1610272314752,4.00959,1340.5,1340.4,4.00959]
[1610272314952,33.01918,1340.5,1340.4,4.00959]
[1610272315351,34.69938,1340.5,1340.4,4.00959]
[1610272315753,30.68979,1340.5,1340.4,4.00959]
[1610272315951,1.6802,1340.5,1340.4,4.00959]
[1610272316958,33.01918,1340.9,1340.5,3.3198]
[1610272317653,28.43959777,1340.9,1340.5,3.3198]
[1610272318855,28.43959777,1340.9,1340.7,4.00959]
[1610272318856,32.44918777,1340.9,1340.7,4.00959]
[1610272320561,28.43959777,1340.9,1340.7,4.00959]
[1610272320760,4.00959,1340.8,1340.7,4.00959]
[1610272320959,34.64748777,1340.8,1340.7,4.00959]
[1610272321461,30.63789777,1340.8,1340.7,4.00959]
[1610272321859,2.1983,1340.8,1340.7,4.00959]
[1610272324261,2.1983,1340.8,1340.7,10.41931361]
[1610272326062,12.0,1341.1,1340.7,10.41931361]
[1610272326763,12.0,1341.1,1341.0,4.00959]
[1610272342778,7.42314752,1341.1,1341.0,4.00959]
[1610272349385,4.10334752,1341.1,1341.0,4.00959]
[1610272355391,4.10334752,1341.1,1341.0,10.41696026]
[1610272362102,4.10334752,1341.1,1341.0,4.00959]
[1610272365105,32.54294529,1341.1,1341.0,4.00959]
[1610272365504,32.54294529,1341.1,1340.9,6.40804575]
[1610272365705,32.54294529,1341.1,1340.7,6.40857459]
[1610272366305,32.54294529,1341.1,1340.5,6.40933519]
[1610272367005,4.00959,1340.8,1340.6,4.00959]
[1610272367205,28.43959777,1340.7,1340.6,4.00959]
[1610272368106,1.9127,1340.8,1340.6,4.00959]
[1610272372512,59.2764,1341.0,1340.6,4.00959]
[1610272373112,59.2764,1341.0,1340.9,4.00959]
[1610272378817,45.754,1341.0,1340.9,4.00959]
[1610272381219,69.61527694,1341.0,1340.9,4.00959]
[1610272382825,69.61527694,1341.0,1340.6,6.40837243]
[1610272383223,73.62486694,1341.0,1340.7,4.00959]
[1610272384327,73.62486694,1341.0,1340.5,6.40900197]
[1610272384729,73.62486694,1341.0,1340.2,6.4099623]
[1610272385131,4.00959,1340.5,1340.4,4.00959]
[1610272385331,27.87086694,1340.5,1340.4,4.00959]
[1610272385533,29.44046694,1340.5,1340.4,4.00959]